bitfinex/quotes_SOLUSD_20250908
["timestamp","ask_amount","ask_price","bid_price","bid_amount"]
[1757310598038,0.06,207.21,207.2,104.23273329]
[1757310598344,0.06,207.21,207.2,104.91273329]
[1757310599347,0.06,207.21,207.2,101.13426264]
[1757310599535,0.06,207.21,207.2,104.91273329]
[1757310601544,0.06,207.21,207.2,108.69120394]
[1757310602955,0.06,207.21,207.2,28.59120395]
[1757310603342,0.06,207.23,207.21,13.59559401]
[1757310603559,0.06,207.23,207.22,3.77847065]
[1757310604051,0.06,207.23,207.22,6.39069778]
[1757310604350,0.06,207.23,207.22,100.08629179]
[1757310605437,0.06,207.23,207.22,104.9120808]
[1757310605834,0.06,207.23,207.22,102.97985367]
[1757310606034,0.06,207.23,207.22,102.29985367]
[1757310606254,0.06,207.23,207.22,102.96985367]
[1757310607660,0.06,207.23,207.22,131.97985367]
[1757310608345,0.06,207.23,207.22,133.91198747]
[1757310610543,0.06,207.24,207.23,13.59559401]
[1757310610763,0.06,207.24,207.23,98.14406466]
[1757310611386,0.06,207.26,207.25,39.59559401]
[1757310611543,0.06,207.28,207.27,13.59559401]
[1757310611744,0.69,207.34,207.31,13.59559401]
[1757310611938,15.43989252,207.36,207.33,3.77847065]
[1757310612471,0.69,207.35,207.34,3.77847065]
[1757310612654,0.69,207.35,207.34,8.60142742]
[1757310613575,0.69,207.35,207.34,34.60142742]
[1757310617657,0.75,207.35,207.34,34.60142742]
[1757310618742,0.75,207.35,207.34,29.77847065]
[1757310620948,0.75,207.35,207.34,26.0]
[1757310622554,0.75,207.35,207.31,83.87847065]
[1757310622754,0.69,207.34,207.33,26.0]
[1757310623662,37.71,207.34,207.33,26.0]
[1757310623863,41.48847065,207.34,207.33,26.0]
[1757310624247,41.48847065,207.34,207.32,26.0]
[1757310624448,0.69,207.33,207.32,26.0]
[1757310630154,4.46847065,207.33,207.26,13.59559401]
[1757310630345,4.46847065,207.33,207.25,99.41377338]
[1757310630346,3.77847065,207.29,207.25,14.48890391]
[1757310630549,37.73,207.28,207.25,14.48890391]
[1757310630750,0.69,207.27,207.25,13.59559401]
[1757310630950,37.04,207.28,207.25,13.59559401]
[1757310631178,0.69,207.27,207.25,13.59559401]
[1757310631466,0.69,207.27,207.25,18.42059821]
[1757310632277,37.04,207.28,207.25,18.42059821]
[1757310632454,37.04,207.28,207.27,26.0]
[1757310632852,37.73,207.28,207.27,26.0]
[1757310635477,0.67,207.3,207.28,26.0]
[1757310635652,37.71,207.29,207.28,26.0]
[1757310636464,37.04,207.29,207.28,26.0]
[1757310636776,37.71,207.29,207.28,26.0]
[1757310637274,0.67,207.29,207.28,26.0]
[1757310637464,37.04,207.29,207.28,26.0]
[1757310637978,37.71,207.29,207.28,26.0]
[1757310639363,0.67,207.32,207.28,30.82435237]
[1757310639665,37.04,207.31,207.28,33.23984275]
[1757310639865,0.67,207.32,207.28,33.23984275]
[1757310640068,37.04,207.31,207.3,16.01108439]
[1757310640265,0.06,207.35,207.33,26.0]
[1757310640471,0.06,207.35,207.34,2.41549038]
[1757310641067,0.06,207.35,207.34,16.73108439]
[1757310641272,0.06,207.35,207.34,14.31559401]
[1757310641472,0.06,207.35,207.34,21.55408043]
[1757310644989,0.06,207.35,207.34,19.13859005]
[1757310645284,0.06,207.35,207.34,21.55408043]
[1757310646296,0.73,207.35,207.34,26.0]
[1757310646466,0.73,207.35,207.34,28.41549038]
[1757310647601,0.73,207.35,207.34,26.0]
[1757310647789,0.73,207.35,207.33,13.59559401]
[1757310648092,0.73,207.35,207.33,16.01108439]
[1757310650869,0.06,207.35,207.33,20.83430296]
[1757310651270,0.73,207.35,207.33,20.83430296]
[1757310652096,37.69,207.34,207.33,2.41549038]
[1757310652883,37.02,207.34,207.33,2.41549038]
[1757310654280,37.02,207.34,207.32,84.92325175]
[1757310654472,37.02,207.34,207.33,2.41549038]
[1757310655795,37.69,207.34,207.32,108.51549038]
[1757310656086,0.67,207.33,207.32,28.41549038]
[1757310656688,37.02,207.34,207.32,33.23892857]
[1757310657294,37.02,207.34,207.33,2.41549038]
[1757310657786,37.69,207.34,207.33,2.41549038]
[1757310660986,37.02,207.34,207.33,7.23871904]
[1757310661178,37.08,207.35,207.34,39.59559401]
[1757310661387,37.08,207.35,207.34,42.01108439]
[1757310661590,0.06,207.35,207.34,42.73108439]
[1757310661897,0.06,207.35,207.34,16.73108439]
[1757310662197,0.06,207.35,207.34,101.65408043]
[1757310666686,0.06,207.35,207.34,100.93408043]
[1757310668588,0.06,207.35,207.34,101.65408043]
[1757310669105,0.06,207.35,207.34,98.51859005]
[1757310669304,0.06,207.35,207.34,100.93408043]
[1757310669701,0.06,207.35,207.34,101.65408043]
[1757310671395,0.06,207.35,207.34,100.93408043]
[1757310672100,0.06,207.35,207.34,101.65408043]
[1757310672607,0.06,207.35,207.34,100.93408043]
[1757310674682,0.74,207.35,207.34,98.51859005]
[1757310674885,0.06,207.35,207.34,100.93408043]
[1757310681000,0.06,207.35,207.34,101.65408043]
[1757310681593,0.06,207.35,207.34,100.93408043]
[1757310682207,0.06,207.35,207.34,101.65408043]
[1757310682517,0.06,207.35,207.34,103.58500172]
[1757310683305,0.06,207.35,207.34,132.59500172]
[1757310686720,0.06,207.38,207.37,39.59559401]
[1757310686920,0.74,207.38,207.37,122.11108439]
[1757310687395,0.06,207.38,207.37,122.11108439]
[1757310687811,0.74,207.38,207.37,122.11108439]
[1757310688228,0.74,207.38,207.37,126.93338269]
[1757310688896,0.06,207.38,207.37,126.93338269]
[1757310689621,0.06,207.38,207.37,127.65338269]
[1757310690116,0.06,207.38,207.37,126.93338269]
[1757310694411,0.06,207.38,207.37,128.86402439]
[1757310695323,0.06,207.38,207.37,126.44853401]
[1757310695505,0.06,207.38,207.37,128.86402439]
[1757310696419,0.06,207.38,207.37,130.21675192]
[1757310701338,0.06,207.38,207.37,130.92675192]
[1757310701533,0.1,207.39,207.38,13.59559401]
[1757310701741,1e-08,207.39,207.38,18.07381192]
[1757310702034,1e-08,207.39,207.38,47.04381192]
[1757310702226,1e-08,207.39,207.38,48.97436044]
[1757310702618,1e-08,207.39,207.38,53.79642621]
[1757310703128,1e-08,207.39,207.38,170.89642621]
[1757310703329,1e-08,207.39,207.38,174.66464412]
[1757310703631,1e-08,207.41,207.4,76.10202983]
[1757310704141,1e-08,207.41,207.4,156.20202983]
[1757310704638,1e-08,207.41,207.4,161.7336306]
[1757310704840,1e-08,207.41,207.4,176.21064834]
[1757310706033,1e-08,207.41,207.4,213.21064834]
[1757310708527,1e-08,207.41,207.4,212.50064834]
[1757310712421,0.72000001,207.41,207.4,167.96421252]
[1757310712657,0.72000001,207.41,207.4,124.51719478]
[1757310712958,0.72000001,207.41,207.4,128.28541269]
[1757310713145,0.72000001,207.41,207.4,48.18541269]
[1757310713455,0.72000001,207.41,207.4,22.18541269]
[1757310713638,0.72000001,207.41,207.35,80.13]
[1757310713948,0.72,207.4,207.39,39.59559401]
[1757310714253,0.72,207.4,207.39,43.36381192]
[1757310714951,0.72,207.4,207.39,48.18564518]
[1757310715149,0.72,207.4,207.39,44.41742727]
[1757310715655,0.72,207.4,207.39,48.18564518]
[1757310719930,0.72,207.4,207.39,43.36381192]
[1757310720243,0.72,207.4,207.39,39.59559401]
[1757310720559,0.72,207.4,207.39,43.36381192]
[1757310721362,0.72,207.4,207.39,39.59559401]
[1757310721654,0.72,207.4,207.39,43.36381192]
[1757310722152,0.72,207.4,207.39,39.59559401]
[1757310722354,0.72,207.4,207.39,43.36381192]
[1757310723258,0.72,207.4,207.39,29.76821791]
[1757310724637,4.48821791,207.4,207.35,0.03]
[1757310724961,4.48821791,207.4,207.37,26.0]
[1757310724962,0.72,207.4,207.37,26.0]
[1757310725148,4.48821791,207.39,207.37,26.0]
[1757310725355,0.69,207.38,207.37,26.0]
[1757310725542,0.69,207.38,207.35,0.03]
[1757310725747,4.45821791,207.38,207.35,0.03]
[1757310725935,3.76821791,207.37,207.35,0.03]
[1757310726141,3.76821791,207.37,207.35,26.03]
[1757310726444,0.69,207.36,207.35,26.03]
[1757310734240,0.69,207.36,207.35,0.03]
[1757310734445,4.45821791,207.36,207.35,0.03]
[1757310735555,9.28074877,207.36,207.35,0.03]
[1757310737245,11.21260263,207.36,207.35,0.03]
[1757310737654,48.21260263,207.36,207.35,0.03]
[1757310737852,11.21260263,207.36,207.35,0.03]
[1757310738158,48.21260263,207.36,207.35,0.03]
[1757310738356,26.0,207.33,207.32,0.03]
[1757310738558,29.76821791,207.33,207.28,0.03]
[1757310738873,3.76821791,207.29,207.28,0.03]
[1757310739082,40.80821791,207.29,207.28,0.03]
[1757310739262,41.49821791,207.29,207.28,0.03]
[1757310739445,46.3223773,207.29,207.28,0.03]
[1757310739646,48.25497786,207.29,207.28,0.03]
[1757310742453,11.21497786,207.29,207.28,0.03]
[1757310742654,48.25497786,207.29,207.28,0.03]
[1757310746761,11.21497786,207.29,207.28,0.03]
[1757310746981,48.23497786,207.29,207.28,0.03]
[1757310748470,11.21497786,207.29,207.28,0.03]
[1757310748788,48.23497786,207.29,207.28,0.03]
[1757310751893,11.21497786,207.29,207.28,0.03]
[1757310752092,48.23497786,207.29,207.28,0.03]
[1757310755198,11.21497786,207.29,207.28,0.03]
[1757310755377,48.23497786,207.29,207.28,0.03]
[1757310755773,1.93260056,207.29,207.28,0.03]
[1757310755972,42.72081847,207.29,207.28,0.03]
[1757310756791,47.54497786,207.29,207.28,0.03]
[1757310757491,48.21497786,207.29,207.28,0.03]
[1757310758372,46.86358302,207.29,207.28,0.03]
[1757310762783,41.36942363,207.29,207.28,0.03]
[1757310765084,38.95260056,207.29,207.28,0.03]
[1757310765384,41.36942363,207.29,207.28,0.03]
[1757310766674,46.19358302,207.29,207.28,0.03]
[1757310766877,41.36942363,207.29,207.28,0.03]
[1757310770096,46.19358302,207.29,207.28,0.03]
[1757310770293,46.86358302,207.29,207.28,0.03]
[1757310774202,46.86358302,207.29,207.28,0.03]
[1757310778900,46.86358302,207.29,207.25,0.03]
[1757310778901,58.92398149,207.29,207.25,0.03]
[1757310779195,58.92398149,207.29,207.24,0.03]
[1757310779196,10.05209464,207.26,207.24,0.03]
[1757310779406,39.43682307,207.25,207.24,0.03]
[1757310779587,40.10682307,207.25,207.24,0.03]
[1757310779791,44.93191354,207.25,207.24,0.03]
[1757310780186,46.86498107,207.25,207.24,0.03]
[1757310782892,9.84498107,207.25,207.24,0.03]
[1757310783189,46.86498107,207.25,207.24,0.03]
[1757310783387,9.84498107,207.25,207.24,0.03]
[1757310783590,46.86498107,207.25,207.24,0.03]
[1757310785304,9.84498107,207.25,207.24,0.03]
[1757310785787,46.86498107,207.25,207.24,0.03]
[1757310785984,9.17498107,207.25,207.24,0.03]
[1757310786189,9.83498107,207.25,207.24,0.03]
[1757310786608,46.85498107,207.25,207.24,0.03]
[1757310787305,9.83498107,207.25,207.24,0.03]
[1757310787807,46.85498107,207.25,207.24,0.03]
[1757310789928,9.83498107,207.25,207.24,0.03]
[1757310790525,46.85498107,207.25,207.24,0.03]
[1757310790891,9.83498107,207.25,207.24,0.03]
[1757310791110,46.85498107,207.25,207.24,0.03]
[1757310793096,9.83498107,207.25,207.24,0.03]
[1757310793491,46.85498107,207.25,207.24,0.03]
[1757310793711,9.83498107,207.25,207.24,0.03]
[1757310794214,46.85498107,207.25,207.24,0.03]
[1757310794423,9.83498107,207.25,207.24,0.03]
[1757310794916,46.85498107,207.25,207.24,0.03]
[1757310796094,46.85498107,207.25,207.22,0.03]
[1757310796292,2.41682307,207.23,207.22,0.03]
[1757310796492,39.43682307,207.23,207.22,0.03]
[1757310796722,40.09682307,207.23,207.22,0.03]
[1757310796909,42.0301709,207.23,207.22,0.03]
[1757310798204,46.85572704,207.23,207.22,0.03]
[1757310798797,43.77890397,207.23,207.22,0.03]
[1757310798997,46.19572704,207.23,207.22,0.03]
[1757310799613,4.3501709,207.23,207.22,0.75]
[1757310799810,41.3701709,207.23,207.22,0.75]
[1757310800297,39.49682307,207.23,207.22,0.75]
[1757310800718,2.47682307,207.23,207.22,0.75]
[1757310801103,39.49682307,207.23,207.22,0.75]
[1757310802302,2.47682307,207.23,207.22,0.75]
[1757310802509,39.49682307,207.23,207.22,0.75]
[1757310803423,39.49682307,207.23,207.22,0.03]
[1757310803723,44.98237921,207.23,207.22,0.03]
[1757310803918,46.91554017,207.23,207.22,0.03]
[1757310804923,9.89554017,207.23,207.22,0.03]
[1757310805110,46.91554017,207.23,207.22,0.03]
[1757310805811,9.89554017,207.23,207.22,0.03]
[1757310806016,46.91554017,207.23,207.22,0.03]
[1757310809123,4.40998403,207.23,207.22,0.75]
[1757310809320,41.42998403,207.23,207.22,0.75]
[1757310809528,41.42998403,207.23,207.22,0.03]
[1757310812025,4.40998403,207.23,207.22,0.03]
[1757310812212,41.42998403,207.23,207.22,0.03]
[1757310812825,39.01316096,207.23,207.22,0.03]
[1757310813029,1.99316096,207.23,207.22,0.75]
[1757310813232,37.08,207.23,207.22,0.75]
[1757310813818,37.08,207.23,207.22,0.03]
[1757310814214,37.08,207.23,207.22,0.75]
[1757310814614,37.08,207.23,207.22,0.03]
[1757310828725,0.06,207.23,207.22,0.03]
[1757310828929,37.08,207.23,207.22,0.03]
[1757310829538,0.06,207.23,207.22,0.03]
[1757310829742,37.08,207.23,207.22,0.03]
[1757310830323,37.78,207.23,207.22,0.03]
[1757310830534,46.38219738,207.23,207.22,0.03]
[1757310830921,60.8802039,207.23,207.22,0.03]
[1757310832621,57.10356266,207.23,207.22,0.03]
[1757310832824,60.8802039,207.23,207.22,0.03]
[1757310834434,56.05464776,207.23,207.22,0.03]
[1757310836430,0.06,207.23,207.22,0.03]
[1757310836641,37.08,207.23,207.22,0.74]
[1757310836830,37.08,207.23,207.22,4.51664124]
[1757310837926,37.08,207.23,207.22,0.74]
[1757310840251,37.08,207.23,207.22,0.03]
[1757310842151,37.08,207.23,207.22,0.74]
[1757310843745,37.08,207.23,207.22,9.34243025]
[1757310844340,37.08,207.23,207.22,22.93802426]
[1757310845649,0.06,207.23,207.22,103.03802426]
[1757310845847,37.08,207.23,207.22,103.03802426]
[1757310846154,37.08,207.23,207.22,110.73329583]
[1757310846354,0.06,207.23,207.22,110.73329583]
[1757310846554,0.06,207.23,207.22,103.03802426]
[1757310846858,0.06,207.23,207.22,146.49832783]
[1757310850342,0.06,207.23,207.22,116.81832783]
[1757310850563,0.06,207.23,207.22,123.50223525]
[1757310851562,0.06,207.23,207.22,128.32802426]
[1757310851773,0.06,207.23,207.22,129.00802426]
[1757310851972,0.06,207.23,207.22,48.90802426]
[1757310852571,0.06,207.23,207.22,22.90802426]
[1757310853673,0.06,207.23,207.22,51.87802426]
[1757310855067,0.06,207.23,207.22,53.81015806]
[1757310857855,0.06,207.23,207.22,133.91015806]
[1757310858051,0.06,207.23,207.22,133.23015806]
[1757310858251,0.72,207.23,207.22,102.32802426]
[1757310858666,0.06,207.23,207.22,102.32802426]
[1757310861154,0.06,207.23,207.22,98.55138302]
[1757310861467,0.06,207.23,207.22,102.32802426]
[1757310861771,0.06,207.23,207.22,103.00802426]
[1757310863474,0.06,207.23,207.22,131.97802426]
[1757310866078,0.06,207.23,207.22,146.46902776]
[1757310866476,0.06,207.23,207.22,131.97802426]
[1757310866777,0.06,207.23,207.22,133.91015806]
[1757310868473,0.06,207.26,207.25,72.34223525]
[1757310868864,0.06,207.26,207.25,73.02223525]
[1757310869055,0.06,207.33,207.29,26.0]
[1757310869275,0.06,207.33,207.29,21.14887649]
[1757310869576,0.06,207.33,207.29,23.76026395]
[1757310870159,1e-08,207.3,207.29,57.55442334]
[1757310872804,1e-08,207.3,207.29,137.65442334]
[1757310873175,0.06,207.35,207.33,68.56559401]
[1757310873368,0.06,207.35,207.34,17.37223525]
[1757310873574,0.06,207.35,207.34,46.34223525]
[1757310873768,0.06,207.35,207.34,60.82414493]
[1757310873977,0.06,207.35,207.34,61.50414493]
[1757310874379,0.06,207.35,207.34,60.82414493]
[1757310874571,0.72,207.35,207.34,36.67714097]
[1757310874895,0.06,207.35,207.34,22.19523129]
[1757310878686,0.06,207.35,207.34,102.29523129]
[1757310882305,0.77,207.35,207.34,102.29523129]
[1757310882478,0.77,207.35,207.34,115.41461479]
[1757310883295,0.06,207.35,207.34,115.41461479]
[1757310889610,0.06,207.35,207.34,108.178902]
[1757310889900,0.06,207.35,207.32,2.41271675]
[1757310889901,0.77,207.35,207.32,2.41271675]
[1757310890106,0.71,207.34,207.32,2.41271675]
[1757310890275,0.06,207.35,207.33,26.0]
[1757310890995,0.71,207.34,207.33,26.0]
[1757310892196,0.71,207.34,207.3,16.00831076]
[1757310892397,0.06,207.35,207.33,26.0]
[1757310892983,0.71,207.34,207.33,26.0]
[1757310902514,0.77,207.35,207.33,28.41271675]
[1757310902888,0.71,207.34,207.33,28.41271675]
[1757310903290,0.71,207.34,207.33,33.23594541]
[1757310904614,0.71,207.34,207.33,0.03]
[1757310905899,3.12271675,207.34,207.33,0.03]
[1757310906713,0.71,207.34,207.33,0.03]
[1757310908897,37.69,207.34,207.33,0.03]
[1757310910297,40.10271675,207.34,207.33,0.03]
[1757310915204,37.69,207.34,207.33,0.03]
[1757310915410,40.10271675,207.34,207.33,0.03]
[1757310916825,37.69,207.34,207.33,0.03]
[1757310918712,40.10271675,207.34,207.33,0.03]
[1757310922827,40.16271675,207.34,207.33,0.03]
[1757310925212,44.98571279,207.34,207.33,0.03]
[1757310925730,42.57299604,207.34,207.33,0.03]
[1757310926028,44.98571279,207.34,207.33,0.03]
[1757310927927,42.57299604,207.34,207.33,0.03]
[1757310928135,44.98571279,207.34,207.33,0.03]
[1757310933252,8.00571279,207.34,207.33,0.03]
[1757310933547,46.91793993,207.34,207.33,0.03]
[1757310942348,48.28029433,207.34,207.33,0.03]
[1757310959043,11.30029433,207.34,207.33,0.03]
[1757310959256,48.28029433,207.34,207.33,0.03]
[1757310960150,11.30029433,207.34,207.33,0.03]
[1757310960367,48.28029433,207.34,207.33,0.03]
[1757310961365,44.50522318,207.34,207.33,0.03]
[1757310961569,48.28029433,207.34,207.33,0.03]
[1757310965797,48.28029433,207.34,207.33,0.73]
[1757310965798,1.99222714,207.34,207.33,0.73]
[1757310966275,40.81507115,207.34,207.33,0.73]
[1757310971483,37.04,207.34,207.33,0.73]
[1757310971784,40.81507115,207.34,207.33,0.73]
[1757310972075,45.63806719,207.34,207.33,0.03]
[1757310972670,45.63806719,207.34,207.33,0.73]
[1757310972671,37.04,207.34,207.33,0.73]
[1757310972872,40.81507115,207.34,207.33,0.73]
[1757310975282,3.83507115,207.34,207.33,0.73]
[1757310975492,40.81507115,207.34,207.33,0.73]
[1757310977478,40.81507115,207.34,207.33,0.03]
[1757310979894,40.81507115,207.34,207.33,0.73]
[1757310980999,40.81507115,207.34,207.33,0.03]
[1757310981995,37.04,207.34,207.33,0.03]
[1757310982216,3.83507115,207.34,207.33,0.03]
[1757310982503,0.06,207.34,207.33,0.73]
[1757310982802,37.02,207.34,207.33,5.58409965]
[1757310983890,41.48507115,207.34,207.33,4.88409965]
[1757310984194,40.79507115,207.34,207.33,0.03]
[1757310984372,0.06,207.34,207.33,0.73]
[1757310984574,37.02,207.34,207.33,0.73]
[1757310987598,37.02,207.34,207.33,15.21820418]
[1757310987896,37.02,207.34,207.33,0.73]
[1757310989000,37.02,207.34,207.33,15.21820419]
[1757310990081,37.02,207.34,207.33,20.04143285]
[1757310993281,0.06,207.34,207.33,20.04143285]
[1757310993481,37.02,207.34,207.33,20.04143285]
[1757310994798,37.02,207.34,207.33,14.51820419]
[1757310995100,37.02,207.34,207.33,15.21820419]
[1757310995814,37.02,207.34,207.33,20.04143285]
[1757310995986,37.02,207.34,207.33,23.816504]
[1757310997498,0.06,207.34,207.33,23.816504]
[1757310997814,37.02,207.34,207.33,23.816504]
[1757311000280,0.06,207.34,207.33,23.816504]
[1757311000485,37.02,207.34,207.33,23.816504]
[1757311001611,0.06,207.35,207.34,13.59559401]
[1757311001810,1e-08,207.37,207.36,39.59559401]
[1757311002009,0.06,207.39,207.37,13.59559401]
[1757311002214,1e-08,207.39,207.38,3.77507115]
[1757311002390,1e-08,207.39,207.38,3.1017122]
[1757311002584,1e-08,207.39,207.38,5.03244708]
[1757311003304,1e-08,207.39,207.38,9.85451285]
[1757311006723,1e-08,207.41,207.4,39.59559401]
[1757311006908,1e-08,207.41,207.4,51.65415501]
[1757311007111,1e-08,207.41,207.4,42.69730621]
[1757311007824,1e-08,207.41,207.4,61.99802085]
[1757311008025,0.72000001,207.41,207.4,61.30802085]
[1757311008825,0.72000001,207.41,207.4,45.30071464]
[1757311009009,0.72000001,207.41,207.4,47.71242684]
[1757311009825,1e-08,207.41,207.4,61.99802085]
[1757311012210,1e-08,207.41,207.4,142.09802085]
[1757311015932,1e-08,207.41,207.4,205.60630865]
[1757311016105,1e-08,207.41,207.4,217.66486965]
[1757311017422,1e-08,207.41,207.4,180.72486965]
[1757311017614,1e-08,207.41,207.4,217.66486965]
[1757311017822,1e-08,207.41,207.4,180.03486965]
[1757311018029,1e-08,207.41,207.4,180.72486965]
[1757311020518,0.72000001,207.41,207.4,141.40802085]
[1757311020713,1e-08,207.41,207.4,141.40802085]
[1757311022125,1e-08,207.41,207.4,170.38802085]
[1757311022316,1e-08,207.41,207.4,141.40802085]
[1757311024211,0.06,207.44,207.43,26.0]
[1757311024419,0.06,207.44,207.43,108.5117122]
[1757311024902,0.06,207.44,207.43,122.98872993]
[1757311025710,0.72,207.44,207.43,127.80963336]
[1757311025919,0.06,207.44,207.43,127.80963336]
[1757311028429,0.72,207.44,207.43,141.40522737]
[1757311029838,0.72,207.44,207.43,61.30522737]
[1757311030327,0.72,207.44,207.43,47.70963336]
[1757311031410,0.06,207.44,207.43,47.70963336]
[1757311031624,0.06,207.44,207.43,61.30522737]
[1757311032038,0.72,207.44,207.43,61.30522737]
[1757311035348,0.06,207.44,207.43,61.30522737]
[1757311036735,0.72,207.44,207.43,47.70963336]
[1757311037233,0.72,207.44,207.43,42.88872993]
[1757311037738,0.72,207.44,207.43,28.4117122]
[1757311038319,0.06,207.44,207.43,33.23261563]
[1757311038917,0.72,207.44,207.43,35.64432783]
[1757311039114,0.06,207.44,207.43,49.23992184]
[1757311040044,0.06,207.44,207.43,49.94992184]
[1757311040251,0.06,207.44,207.43,23.94992184]
[1757311042243,0.06,207.44,207.43,52.92992184]
[1757311042430,0.06,207.44,207.43,23.94992184]
[1757311044627,0.06,207.44,207.43,104.04992184]
[1757311044823,0.06,207.44,207.43,103.33992184]
[1757311052337,0.06,207.44,207.43,104.04992184]
[1757311052636,0.06,207.46,207.44,13.59559401]
[1757311052837,0.06,207.46,207.45,2.4117122]
[1757311053844,0.06,207.46,207.45,21.7077715]
[1757311054838,1e-08,207.46,207.45,72.95336551]
[1757311055752,1e-08,207.46,207.45,153.05336551]
[1757311056651,1e-08,207.46,207.45,182.03336551]
[1757311058260,1e-08,207.46,207.45,142.68165331]
[1757311058460,1e-08,207.46,207.45,182.05336551]
[1757311062356,1e-08,207.46,207.45,196.54336551]
[1757311062668,1e-08,207.46,207.45,182.05336551]
[1757311064467,1e-08,207.46,207.45,183.40634781]
[1757311064849,1e-08,207.46,207.45,145.73634781]
[1757311065041,1e-08,207.46,207.45,182.69634781]
[1757311065452,1e-08,207.46,207.45,142.64165331]
[1757311065648,1e-08,207.46,207.45,183.36634781]
[1757311067051,1e-08,207.46,207.45,182.69634781]
[1757311067984,1e-08,207.46,207.45,183.36634781]
[1757311068465,0.66,207.49,207.48,13.59559401]
[1757311068671,0.66,207.49,207.48,134.4002885]
[1757311068852,0.66,207.49,207.48,102.28003016]
[1757311069163,0.66,207.49,207.48,106.04472466]
[1757311075559,0.1,207.55,207.52,26.0]
[1757311075754,0.1,207.55,207.52,29.7646945]
[1757311076270,0.66,207.54,207.52,29.7646945]
[1757311076475,0.1,207.55,207.53,14.47282727]
[1757311076775,0.1,207.55,207.52,34.58340048]
[1757311077073,0.66,207.54,207.52,49.05622774]
[1757311077275,0.66,207.53,207.52,49.05622774]
[1757311077776,0.66,207.53,207.52,34.58340048]
[1757311078480,0.66,207.53,207.52,38.34809498]
[1757311080489,0.66,207.53,207.52,51.94368899]
[1757311080782,0.1,207.55,207.52,51.94368899]
[1757311080783,0.1,207.55,207.53,13.59559401]
[1757311080983,0.1,207.55,207.54,3.7646945]
[1757311081166,0.1,207.55,207.54,17.36028851]
[1757311081486,0.1,207.55,207.54,18.03028851]
[1757311081689,0.1,207.55,207.54,19.9594404]
[1757311081980,0.1,207.55,207.54,24.10778867]
[1757311082979,0.76,207.55,207.54,24.10778867]
[1757311083882,0.76,207.55,207.54,46.34309417]
[1757311084083,0.76,207.55,207.54,50.10778867]
[1757311084871,0.76,207.55,207.54,5.69384639]
[1757311085255,0.76,207.55,207.54,31.69384639]
[1757311086677,0.76,207.55,207.54,32.74750016]
[1757311086878,0.76,207.55,207.54,1.92915189]
[1757311087089,0.76,207.55,207.53,29.7646945]
[1757311087279,0.67,207.54,207.53,29.7646945]
[1757311087582,0.67,207.54,207.53,34.58327165]
[1757311088587,0.1,207.55,207.53,48.17886566]
[1757311088786,0.1,207.55,207.54,3.7646945]
[1757311088994,0.77,207.55,207.54,3.7646945]
[1757311089380,0.77,207.55,207.54,17.36028851]
[1757311090291,0.1,207.55,207.54,17.36028851]
[1757311090694,0.77,207.55,207.54,22.17863678]
[1757311091692,0.77,207.55,207.54,36.64867174]
[1757311092083,0.77,207.55,207.54,116.74867173]
[1757311092896,0.77,207.55,207.54,145.72867173]
[1757311093100,0.77,207.55,207.54,116.74867173]
[1757311095400,0.1,207.55,207.54,116.74867173]
[1757311095582,0.77,207.55,207.54,116.74867173]
[1757311097092,0.1,207.55,207.54,117.42867173]